bitfinex-derivatives/quotes_SOLF0:USTF0_20241218
["timestamp","ask_amount","ask_price","bid_price","bid_amount"]
[1734541411220,5.42751087,215.99,215.83,18.05476472]
[1734541411221,5.42751087,215.99,215.87,20.31476472]
[1734541411521,484.54605,215.96,215.95,2.3159]
[1734541411723,484.54605,215.96,215.88,4.4878]
[1734541412321,484.54605,215.96,215.88,1.4539]
[1734541412522,484.54605,215.96,215.9,2.3164]
[1734541412523,2.316,215.95,215.9,2.3164]
[1734541412725,2.26,215.95,215.88,1.4539]
[1734541413422,2.26,215.95,215.92,2.3161]
[1734541413622,484.54605,215.96,215.92,2.3161]
[1734541414328,2.3159,215.95,215.9,2.3163]
[1734541414526,484.54605,215.96,215.9,2.3163]
[1734541415424,2.316,215.94,215.9,2.3163]
[1734541416217,2.3159,215.95,215.9,2.3163]
[1734541417227,484.54605,215.96,215.88,3.7339]
[1734541417925,484.54605,215.96,215.95,2.3159]
[1734541418131,477.32085,215.96,215.95,2.3159]
[1734541418330,454.92845,215.96,215.95,2.3159]
[1734541418627,452.52585,215.96,215.95,2.3159]
[1734541419218,450.12345,215.96,215.95,2.3159]
[1734541422029,350.63045448,215.96,215.95,20.37066472]
[1734541422620,257.97147621,215.96,215.95,20.37066472]
[1734541422831,227.39385914,215.96,215.95,20.37066472]
[1734541423228,227.39385914,215.96,215.95,2.3159]
[1734541423427,227.39385914,215.96,215.95,7.81928734]
[1734541423822,226.90015914,215.96,215.95,7.81928734]
[1734541424026,181.29767137,215.96,215.95,7.81928734]
[1734541424228,42.86370085,215.96,215.95,7.81928734]
[1734541424424,2.28,216.18,215.95,8.74542765]
[1734541424637,2.3135,216.17,216.07,18.05476472]
[1734541424927,2.3135,216.17,216.08,2.28]
[1734541425131,2.3138,216.15,216.07,18.05476472]
[1734541425327,2.28,216.18,216.05,2.28]
[1734541426431,2.314,216.13,216.08,2.3145]
[1734541426729,18.05476472,216.18,215.99,18.05476472]
[1734541426929,2.3144,216.09,216.04,2.3148]
[1734541427259,3.8633,216.12,215.99,18.05476472]
[1734541427431,3.8633,216.12,216.03,2.315]
[1734541427432,2.3147,216.07,216.03,2.315]
[1734541427732,1.5415,216.11,216.03,2.315]
[1734541428327,1.5415,216.11,216.02,2.3151]
[1734541428524,1.5415,216.11,215.99,2.28]
[1734541429426,2.3146,216.07,216.02,2.3151]
[1734541429631,1.5415,216.11,215.99,2.28]
[1734541430131,2.3147,216.07,216.01,2.3151]
[1734541430328,2.3147,216.07,215.99,2.28]
[1734541430329,1.5415,216.11,215.99,20.33476472]
[1734541430533,2.3144,216.09,216.05,2.3148]
[1734541430736,2.3144,216.09,215.99,20.33476472]
[1734541430737,1.5415,216.11,215.99,20.33476472]
[1734541431129,3.8558,216.11,216.06,2.3147]
[1734541431729,2.3143,216.1,216.05,2.3148]
[1734541431934,1.5415,216.11,215.99,20.33476472]
[1734541432130,19.9,216.33,215.99,20.33476472]
[1734541432131,4.6246,216.29,216.01,18.05476472]
[1734541432329,4.6246,216.29,216.13,2.3139]
[1734541432330,2.3134,216.18,216.13,2.3139]
[1734541432933,2.3135,216.17,216.13,2.3139]
[1734541433136,5.238,216.2,216.13,2.3139]
[1734541433331,5.238,216.2,216.09,18.05476472]
[1734541433632,2.3136,216.17,216.12,2.314]
[1734541434635,2.3137,216.15,216.1,2.3143]
[1734541434934,2.28,216.14,216.05,18.05476472]
[1734541435736,2.28,216.14,216.01,20.33476472]
[1734541435941,2.28,216.14,216.01,4.5952]
[1734541435942,2.3148,216.05,216.01,4.5952]
[1734541436238,2.28,216.09,215.98,2.28]
[1734541436435,2.28,216.08,215.98,2.28]
[1734541436639,2.3147,216.07,216.01,2.3152]
[1734541437235,2.3148,216.06,216.01,2.3152]
[1734541437436,2.3148,216.06,216.02,2.3151]
[1734541438034,2.3148,216.06,216.01,2.3152]
[1734541438836,2.3148,216.06,216.02,2.3151]
[1734541440144,2.28,216.08,215.96,3.20609742]
[1734541440341,4.6091,216.07,215.96,2.28]
[1734541440934,4.6091,216.07,215.95,23.55815206]
[1734541441134,4.6091,216.07,215.95,18.05476472]
[1734541441338,4.6091,216.07,215.91,23.50791447]
[1734541441742,2.3155,215.99,215.93,2.316]
[1734541441942,2.28,216.0,215.91,18.05476472]
[1734541442142,2.28,215.99,215.91,18.05476472]
[1734541442541,2.28,216.03,215.95,18.05476472]
[1734541442742,2.28,216.06,215.95,20.33476472]
[1734541443343,2.3151,216.02,215.97,2.3156]
[1734541443544,2.28,216.06,215.95,20.33476472]
[1734541444547,4.5948,216.06,216.0,2.3153]
[1734541444844,4.6091,216.07,215.99,18.05476472]
[1734541445040,4.6091,216.07,216.01,2.3152]
[1734541445247,4.6091,216.07,215.99,18.05476472]
[1734541445936,3.0306,216.07,215.99,18.05476472]
[1734541446347,2.3144,216.1,215.93,18.05476472]
[1734541446348,3.8606,216.14,216.03,18.05476472]
[1734541446545,3.8606,216.14,216.07,18.05476472]
[1734541446546,1.5406,216.14,216.07,18.05476472]
[1734541446849,2.3134,216.18,216.13,2.3139]
[1734541448443,3.1914,216.2,216.08,2.32]
[1734541448644,3.1914,216.2,216.11,18.05476472]
[1734541448846,2.32,216.24,216.11,18.05476472]
[1734541451839,2.313,216.22,216.16,2.3136]
[1734541452149,2.32,216.24,216.11,18.05476472]
[1734541452454,2.32,216.24,216.13,2.3139]
[1734541452745,2.32,216.24,216.09,2.32]
[1734541453248,18.05476472,216.23,216.05,2.32]
[1734541453444,18.05476472,216.23,216.03,23.66995508]
[1734541453645,18.05476472,216.19,216.03,20.37476472]
[1734541453950,6.928,216.18,216.03,20.37476472]
[1734541454142,6.928,216.18,216.03,2.32]
[1734541454549,6.928,216.18,215.99,20.37476472]
[1734541454848,6.928,216.18,216.05,2.3148]
[1734541455450,6.928,216.18,216.07,2.3145]
[1734541455649,6.928,216.18,216.03,18.05476472]
[1734541456145,6.928,216.18,216.06,2.3147]
[1734541456548,6.928,216.18,216.03,18.05476472]
[1734541456549,2.3145,216.09,216.04,2.3148]
[1734541456946,2.32,216.1,215.99,20.37476472]
[1734541457149,2.3145,216.08,216.02,2.315]
[1734541457450,2.32,216.1,216.02,2.315]
[1734541457851,2.32,216.1,216.0,2.3152]
[1734541458049,2.32,216.1,215.96,7.76209578]
[1734541458248,2.32,216.1,215.97,18.05476472]
[1734541458550,2.3146,216.07,216.0,2.3152]
[1734541458743,2.3146,216.07,215.97,18.05476472]
[1734541459554,2.3146,216.07,216.02,2.3151]
[1734541460050,4.6344,216.1,216.04,2.3149]
[1734541460451,4.6344,216.1,216.01,18.05476472]
[1734541460651,2.3144,216.09,216.01,18.05476472]
[1734541462450,4.608,216.18,216.01,20.37476472]
[1734541462651,5.66660638,216.16,216.01,20.37476472]
[1734541462857,5.66660638,216.16,216.05,18.05476472]
[1734541463057,7.98660638,216.16,216.05,18.05476472]
[1734541463766,7.98660638,216.16,216.01,20.37476472]
[1734541464556,7.98660638,216.16,216.01,18.05476472]
[1734541464758,7.98660638,216.16,215.96,23.4968605]
[1734541464759,18.05476472,216.15,215.96,23.4968605]
[1734541464959,18.05476472,216.15,215.96,18.05476472]
[1734541465254,18.05476472,216.11,215.96,18.05476472]
[1734541465455,2.32,216.1,215.98,2.3155]
[1734541465953,2.3151,216.03,215.98,2.3155]
[1734541466662,2.3151,216.02,215.98,2.3155]
[1734541467551,2.32,216.04,215.92,18.05476472]
[1734541467751,2.32,216.04,215.89,2.32]
[1734541468155,2.3157,215.97,215.93,2.3161]
[1734541468456,2.3157,215.97,215.89,2.32]
[1734541468656,2.32,215.98,215.88,71.04650472]
[1734541469063,2.952,215.97,215.88,71.04650472]
[1734541469558,5.2678,215.97,215.88,71.04650472]
[1734541469758,2.952,215.97,215.88,71.04650472]
[1734541470157,2.952,215.97,215.93,2.316]
[1734541471054,2.3155,215.99,215.94,2.3159]
[1734541471552,2.3156,215.98,215.93,2.3161]
[1734541472862,2.3156,215.98,215.94,2.316]
[1734541473357,2.952,216.04,215.96,2.3158]
[1734541473559,2.952,216.04,215.92,18.05476472]
[1734541473863,2.32,216.03,215.92,18.05476472]
[1734541475295,2.3153,216.0,215.96,2.3157]
[1734541475561,2.32,216.03,215.88,71.04650472]
[1734541476065,2.32,216.03,215.92,18.05476472]
[1734541476363,2.34,216.03,215.92,20.39476472]
[1734541476561,2.3153,216.01,215.92,20.39476472]
[1734541476760,2.34,216.03,215.92,20.39476472]
[1734541477158,2.3152,216.02,215.97,2.3156]
[1734541477457,2.952,216.04,215.92,20.39476472]
[1734541477662,23.7213711,216.16,216.02,2.3151]
[1734541477859,1.5532,216.12,216.02,2.3151]
[1734541478259,2.3146,216.08,215.97,2.34]
[1734541478557,2.34,216.1,215.97,2.34]
[1734541479865,2.3147,216.07,215.99,2.3154]
[1734541480165,2.34,216.1,215.97,2.34]
[1734541480665,2.3147,216.07,216.0,2.3153]
[1734541480867,2.34,216.1,216.0,2.3153]
[1734541481261,2.34,216.1,215.97,2.34]
[1734541481866,2.3148,216.06,216.01,2.3152]
[1734541482963,2.34,216.1,215.98,2.3156]
[1734541483160,2.34,216.1,215.92,20.39476472]
[1734541483362,18.05476472,216.08,215.92,18.05476472]
[1734541483561,2.3156,215.98,215.94,2.316]
[1734541483765,18.05476472,216.08,215.88,71.04650472]
[1734541483766,2.34,216.02,215.88,71.04650472]
[1734541483961,2.316,215.94,215.89,2.3164]
[1734541484164,2.316,215.94,215.88,52.99174]
[1734541484165,2.34,215.98,215.88,52.99174]
[1734541484765,2.3162,215.92,215.88,55.30834]
[1734541485372,2.34,215.93,215.88,52.99174]
[1734541485665,19.51936472,216.0,215.88,52.99174]
[1734541485666,2.34,215.92,215.88,52.99174]
[1734541485964,2.34,215.91,215.88,52.99174]
[1734541486166,2.3165,215.89,215.88,52.99174]
[1734541488663,2.3165,215.89,215.88,50.58294]
[1734541490067,5.45826606,215.99,215.88,50.58294]
[1734541490068,2.34,215.91,215.88,50.58294]
[1734541490268,2.34,215.92,215.88,50.58294]
[1734541490471,2.34,215.94,215.88,50.58294]
[1734541491473,2.3162,215.92,215.88,50.58294]
[1734541492870,2.3163,215.91,215.88,50.58294]
[1734541493467,2.3165,215.9,215.88,50.58294]
[1734541495669,2.3165,215.89,215.88,50.58294]
[1734541496274,2.3164,215.9,215.88,50.58294]
[1734541498474,2.34,215.94,215.88,50.58294]
[1734541498672,2.3165,215.89,215.88,50.58294]
[1734541499174,4.6565,215.89,215.88,50.58294]
[1734541499874,4.6565,215.89,215.88,37.82374]
[1734541501878,4.6565,215.89,215.88,35.41534]
[1734541504478,4.5965,215.89,215.88,35.41534]
[1734541505480,2.3165,215.89,215.88,35.41534]
[1734541508680,2.28,215.91,215.88,35.41534]
[1734541508874,12.93641038,215.96,215.88,35.41534]
[1734541509076,2.28,215.93,215.88,35.41534]
[1734541509281,2.3165,215.9,215.88,35.41534]
[1734541511481,2.3165,215.89,215.88,35.41534]
[1734541512082,2.3177,215.78,215.76,1.4645]
[1734541512281,2.28,215.82,215.7,11.33711038]
[1734541512587,13.61711038,215.81,215.74,1.5248]
[1734541512883,2.28,215.8,215.74,1.5248]
[1734541513484,2.28,215.8,215.7,1.4977]
[1734541513485,2.318,215.75,215.7,1.4977]
[1734541514078,2.3179,215.77,215.71,2.3184]
[1734541514489,2.3179,215.77,215.7,1.4977]
[1734541514685,2.3185,215.71,215.7,1.4977]
[1734541514887,2.28,215.73,215.68,1.4917]
[1734541515188,2.28,215.72,215.62,11.33711038]
[1734541515393,2.28,215.71,215.62,13.65651038]
[1734541515588,2.28,215.71,215.62,11.33711038]
[1734541515786,18.5324,215.93,215.65,11.33711038]
[1734541515787,2.3182,215.74,215.65,11.33711038]
[1734541517386,2.3182,215.74,215.68,2.3188]
[1734541517790,2.28,215.75,215.68,2.3188]
[1734541518098,2.3182,215.73,215.68,2.3188]
[1734541518392,5.67749536,215.79,215.68,11.33711038]
[1734541518691,2.3179,215.77,215.68,11.33711038]
[1734541519190,2.3179,215.77,215.7,2.3185]
[1734541519390,2.3179,215.77,215.68,11.33711038]
[1734541519791,2.3179,215.77,215.72,2.3183]
[1734541520290,2.3179,215.76,215.72,2.3183]
[1734541521300,2.3179,215.76,215.71,2.3185]
[1734541521594,2.28,215.78,215.65,11.33711038]
[1734541521793,5.67749536,215.79,215.69,2.3186]
[1734541522192,2.3181,215.75,215.69,2.3186]
[1734541523090,2.3181,215.75,215.7,2.3186]
[1734541523594,2.319,215.66,215.61,6.9137]
[1734541523892,11.33711038,215.75,215.61,6.9137]
[1734541523893,2.28,215.7,215.61,4.5942]
[1734541524091,2.28,215.71,215.61,4.5942]
[1734541524394,2.28,215.71,215.62,2.3194]
[1734541524595,2.28,215.71,215.61,4.5942]
[1734541524994,2.28,215.71,215.61,6.9136]
[1734541525392,2.28,215.71,215.61,4.5942]
[1734541525591,2.28,215.71,215.62,2.3194]
[1734541527599,11.33711038,215.69,215.54,11.33711038]
[1734541527796,11.33711038,215.69,215.54,12.84771038]
[1734541528299,11.33711038,215.69,215.57,2.3199]
[1734541528597,11.33711038,215.66,215.54,1.5106]
[1734541528790,2.32,215.57,215.54,1.5106]
[1734541528997,2.28,215.59,215.54,1.5106]
[1734541529198,11.33711038,215.63,215.54,1.5106]
[1734541529199,2.28,215.58,215.54,1.5106]
[1734541529399,2.32,215.57,215.54,1.5106]
[1734541529997,2.3196,215.61,215.54,1.5106]
[1734541530203,5.66253936,215.68,215.55,11.33711038]
[1734541530204,2.28,215.62,215.55,11.33711038]
[1734541530389,2.28,215.64,215.55,11.33711038]
[1734541530589,2.28,215.64,215.56,2.3201]
[1734541531096,2.3194,215.62,215.55,11.33711038]
[1734541531395,2.28,215.72,215.58,11.33711038]
[1734541531698,2.3189,215.67,215.62,2.3193]
[1734541531898,2.28,215.71,215.59,2.28]
[1734541532102,2.28,215.71,215.61,11.33711038]
[1734541532302,2.28,215.71,215.64,2.3192]
[1734541533501,2.3189,215.67,215.62,3.0692]
[1734541534106,2.3186,215.7,215.64,2.3191]
[1734541534406,2.28,215.71,215.62,3.0692]
[1734541535002,2.28,215.71,215.62,5.3886]
[1734541535003,2.3189,215.67,215.62,5.3886]
[1734541535395,2.28,215.71,215.62,5.3886]
[1734541535604,11.33711038,215.7,215.54,1.5106]
[1734541535905,11.33711038,215.67,215.55,3.0193]
[1734541536206,2.26,215.66,215.55,3.0193]
[1734541536405,11.33711038,215.64,215.55,3.0193]
[1734541538203,2.3199,215.58,215.55,3.0193]
[1734541538405,2.26,215.6,215.53,2.3204]
[1734541538710,2.26,215.6,215.49,18.16471038]
[1734541538910,2.26,215.63,215.52,11.74347038]
[1734541539206,2.26,215.66,215.55,11.33711038]
[1734541539398,2.3192,215.64,215.55,13.59711038]
[1734541539603,2.26,215.66,215.55,13.59711038]
[1734541540312,2.3194,215.63,215.58,2.3198]
[1734541540803,2.3194,215.63,215.55,13.59711038]
[1734541540804,2.3196,215.61,215.56,2.3201]
[1734541541504,11.33711038,215.65,215.52,14.00347038]
[1734541541701,11.33711038,215.65,215.55,2.3202]
[1734541542211,2.3194,215.62,215.55,2.3202]
[1734541542510,2.26,215.61,215.55,2.3202]
[1734541543310,2.3198,215.59,215.55,2.3202]
[1734541543607,2.26,215.61,215.52,14.00347038]
[1734541543811,2.3194,215.62,215.58,2.3198]
[1734541545104,2.26,215.64,215.55,11.33711038]
[1734541545313,2.26,215.64,215.56,2.32]
[1734541546109,2.26,215.64,215.52,11.74347038]
[1734541546410,11.33711038,215.62,215.52,0.40636]
[1734541547312,2.3204,215.53,215.52,0.40636]
[1734541549319,2.26,215.57,215.45,13.65831038]
[1734541549320,2.3209,215.49,215.45,13.65831038]
[1734541550712,2.321,215.48,215.44,2.3213]
[1734541550913,2.26,215.52,215.41,2.26]
[1734541551115,2.3212,215.46,215.42,2.3215]
[1734541551612,2.3213,215.45,215.41,13.59711038]
[1734541551816,2.3213,215.45,215.41,11.33711038]
[1734541552117,11.33711038,215.6,215.36,11.33711038]
[1734541552118,2.3218,215.4,215.36,11.33711038]
[1734541552315,11.33711038,215.47,215.33,5.60323799]
[1734541552316,1.77016,215.42,215.33,12.78791038]
[1734541552510,2.26,215.42,215.33,12.78791038]
[1734541552911,18.5598,215.58,215.39,11.33711038]
[1734541552912,4.6398,215.58,215.39,11.33711038]
[1734541553115,5.51796042,215.49,215.42,11.33711038]
[1734541553412,2.26,215.48,215.41,2.3216]
[1734541553614,5.51796042,215.49,215.4,1.4854]
[1734541553816,2.26,215.48,215.42,11.33711038]
[1734541554316,2.26,215.51,215.42,11.33711038]
[1734541554517,2.26,215.51,215.45,11.33711038]
[1734541556521,4.5806,215.51,215.47,2.321]
[1734541557112,5.44590997,215.54,215.48,2.3209]
[1734541557321,12.91981038,215.57,215.48,11.33711038]
[1734541557322,2.26,215.57,215.48,11.33711038]
[1734541557818,2.26,215.57,215.45,11.33711038]
[1734541558019,13.59711038,215.57,215.45,11.33711038]
[1734541558720,2.3206,215.51,215.46,2.3211]
[1734541559117,2.3206,215.51,215.45,11.33711038]
[1734541559318,4.5805,215.52,215.47,2.321]
[1734541560319,2.26,215.52,215.45,11.33711038]
[1734541561223,2.26,215.52,215.49,2.3207]
[1734541561821,2.26,215.52,215.47,2.321]
[1734541562020,2.26,215.52,215.43,7.17025926]
[1734541562324,2.3208,215.5,215.46,2.3211]
[1734541562528,2.26,215.52,215.43,7.17025926]
[1734541563421,11.33711038,215.5,215.43,1.5243]
[1734541563726,11.33711038,215.5,215.4,1.4854]
[1734541564321,11.33711038,215.5,215.35,11.33711038]
[1734541565124,2.3212,215.46,215.39,2.3218]
[1734541565324,2.26,215.45,215.39,2.3218]
[1734541565725,2.26,215.45,215.35,11.33711038]
[1734541566124,2.3217,215.41,215.37,2.3221]
[1734541566328,2.26,215.45,215.35,11.33711038]
[1734541566521,2.26,215.45,215.34,1.4738]
[1734541566720,2.26,215.45,215.34,3.7961]
[1734541566922,2.26,215.45,215.34,1.4738]
[1734541567327,2.26,215.45,215.36,2.3222]
[1734541567526,2.26,215.45,215.34,1.4738]
[1734541568031,2.26,215.45,215.36,2.3222]
[1734541568425,2.3218,215.41,215.36,2.3222]
[1734541568625,2.26,215.45,215.36,2.3222]
[1734541569425,2.3218,215.4,215.36,2.3222]
[1734541569625,2.26,215.45,215.36,2.3222]
[1734541570134,7.80205324,215.45,215.36,2.3222]
[1734541570929,7.80205324,215.45,215.35,2.3223]
[1734541571130,2.26,215.44,215.35,2.3223]
[1734541571432,2.3219,215.4,215.35,2.3223]
[1734541571633,2.26,215.44,215.35,2.3223]
[1734541572227,11.33711038,215.42,215.34,1.4738]
[1734541572432,11.33711038,215.42,215.21,4.4861]
[1734541572731,11.33711038,215.42,215.26,11.33711038]
[1734541573137,2.3226,215.33,215.29,2.323]
[1734541573341,4.5826,215.33,215.26,11.33711038]
[1734541573637,4.5826,215.33,215.27,5.69538328]
[1734541573931,4.5826,215.33,215.28,2.323]
[1734541574132,4.5826,215.33,215.27,5.69538328]
[1734541575433,4.5826,215.33,215.29,2.3229]
[1734541577635,2.3226,215.33,215.29,2.3229]
[1734541577840,4.5826,215.33,215.29,2.3229]
[1734541578433,2.3227,215.32,215.29,2.3229]
[1734541579140,2.26,215.33,215.21,4.4861]
[1734541579336,2.26,215.33,215.22,11.33711038]
[1734541579636,2.26,215.33,215.25,11.33711038]
[1734541579837,2.3227,215.32,215.27,2.3231]
[1734541580541,2.3228,215.31,215.27,2.3231]
[1734541580936,2.26,215.33,215.21,4.4861]
[1734541581133,2.26,215.33,215.21,15.82321038]
[1734541581738,2.26,215.33,215.21,4.4861]
[1734541581942,2.26,215.33,215.21,15.82321038]
[1734541582142,2.3231,215.29,215.25,2.3234]
[1734541582344,2.26,215.28,215.21,15.82321038]
[1734541582641,2.26,215.28,215.26,2.3232]
[1734541582845,2.26,215.31,215.24,11.33711038]
[1734541583345,2.26,215.31,215.29,2.3229]
[1734541585147,11.33711038,215.39,215.3,2.3229]
[1734541585450,2.26,215.38,215.3,2.3229]
[1734541585650,2.26,215.38,215.24,11.33711038]
[1734541585948,2.26,215.38,215.28,2.323]
[1734541586248,2.26,215.38,215.29,2.3229]
[1734541587048,11.33711038,215.39,215.29,2.3229]
[1734541587049,2.3225,215.34,215.29,2.3229]
[1734541587245,2.26,215.34,215.25,2.26]
[1734541587550,2.26,215.34,215.27,11.33711038]
[1734541587756,2.26,215.34,215.32,2.3226]
[1734541588350,2.26,215.34,215.27,11.33711038]
[1734541588555,2.3224,215.35,215.31,2.3228]
[1734541589454,13.59711038,215.36,215.22,2.26]
[1734541589956,2.3229,215.31,215.27,2.3231]
[1734541590154,2.26,215.31,215.22,2.26]
[1734541590653,4.5829,215.31,215.27,2.3231]
[1734541592458,4.5829,215.31,215.28,2.323]
[1734541593361,11.33711038,215.39,215.24,11.33711038]
[1734541593661,2.3225,215.34,215.3,2.3228]
[1734541594859,1.506,215.43,215.24,11.33711038]
[1734541595160,2.26,215.42,215.28,11.33711038]
[1734541595466,2.322,215.39,215.34,2.3224]
[1734541595756,2.322,215.39,215.3,2.26]
[1734541596154,2.3218,215.4,215.31,3.0726]
[1734541596352,2.3218,215.4,215.31,4.5499]
[1734541596554,2.26,215.42,215.31,4.5499]
[1734541596756,2.26,215.42,215.36,2.3221]
[1734541597163,2.3218,215.4,215.36,2.3221]
[1734541597874,2.3219,215.39,215.35,2.3222]
[1734541598068,11.33711038,215.41,215.31,4.5499]
[1734541598457,11.33711038,215.41,215.31,1.5151]
[1734541599761,2.3221,215.38,215.34,2.3224]
[1734541600662,2.3221,215.37,215.33,2.3225]
[1734541600860,11.33711038,215.41,215.31,1.5151]
[1734541601851,2.3221,215.37,215.31,1.5151]
[1734541602953,11.33711038,215.38,215.31,1.5151]
[1734541603155,2.26,215.37,215.31,1.5151]
[1734541603355,2.26,215.37,215.29,2.3229]
[1734541603660,2.26,215.37,215.26,3.8099]
[1734541604363,2.26,215.37,215.27,5.65544576]
[1734541604564,2.3225,215.34,215.3,2.3229]
[1734541605766,2.3226,215.33,215.29,2.323]
[1734541606164,2.3226,215.33,215.27,5.65544576]
[1734541607270,2.26,215.37,215.26,1.5499]
[1734541607271,2.3227,215.32,215.26,1.5499]
[1734541608165,2.3227,215.32,215.26,7.0798551]
[1734541608563,2.3227,215.32,215.28,2.3231]
[1734541608765,2.3228,215.31,215.26,1.5499]
[1734541609162,2.26,215.37,215.26,1.5499]
[1734541609362,2.26,215.36,215.26,1.5499]
[1734541610668,2.3227,215.32,215.28,2.323]
[1734541610863,2.26,215.36,215.26,1.5499]
[1734541611366,2.26,215.35,215.27,11.33711038]
[1734541611863,2.3225,215.34,215.29,2.3229]
[1734541612065,2.3225,215.34,215.27,11.33711038]
[1734541612268,2.26,215.35,215.27,11.33711038]
[1734541612668,2.3226,215.33,215.29,2.323]
[1734541613870,2.26,215.35,215.26,1.5499]
[1734541614070,2.3228,215.31,215.27,9.61838935]
[1734541617067,2.3226,215.33,215.29,9.61818935]
[1734541617368,2.26,215.35,215.22,7.29528935]
[1734541617573,7.29528935,215.3,215.22,7.29528935]
[1734541617869,2.26,215.29,215.24,9.61878935]
[1734541618271,2.3232,215.27,215.22,2.3236]
[1734541618566,2.3232,215.27,215.23,7.29528935]
[1734541619663,2.3232,215.27,215.23,9.61888935]
[1734541619871,4.583,215.29,215.23,7.29528935]
[1734541620062,4.583,215.29,215.25,9.61868935]
[1734541620259,2.26,215.29,215.24,7.29528935]
[1734541620666,2.26,215.29,215.18,8.96975639]
[1734541620965,7.29528935,215.28,215.2,7.29528935]
[1734541621371,2.3236,215.24,215.2,9.61918935]
[1734541621568,4.5836,215.24,215.2,9.61918935]
[1734541624568,2.32,215.26,215.22,7.29528935]
[1734541626869,2.32,215.26,215.2,7.29528935]
[1734541628060,2.32,215.26,215.2,9.61918935]
[1734541628061,2.3236,215.24,215.2,9.61918935]
[1734541628767,4.6437,215.4,215.22,7.29528935]
[1734541628768,2.32,215.34,215.22,7.29528935]
[1734541629070,2.32,215.33,215.27,7.29528935]
[1734541629272,2.3229,215.31,215.27,7.29528935]
[1734541629975,2.3229,215.31,215.26,2.3232]
[1734541630170,2.32,215.33,215.24,2.3234]
[1734541630477,13.71992992,215.33,215.2,11.39992992]
[1734541630866,13.71992992,215.33,215.23,2.3236]
[1734541631474,13.71992992,215.33,215.23,2.3235]
[1734541631667,13.71992992,215.33,215.2,11.39992992]
[1734541632272,2.323,215.29,215.24,2.3234]
[1734541632773,4.643,215.29,215.24,2.3234]
[1734541633274,2.32,215.29,215.2,11.39992992]
[1734541634076,2.3234,215.26,215.21,2.3238]
[1734541634277,2.32,215.29,215.18,3.1631]
[1734541634977,2.3235,215.25,215.18,3.1631]
[1734541635180,2.32,215.24,215.18,3.1631]
[1734541635683,2.32,215.24,215.2,2.3239]
[1734541637276,4.6435,215.24,215.2,2.3239]
[1734541638480,5.5788396,215.32,215.2,11.39992992]
[1734541638771,2.32,215.31,215.2,11.39992992]
[1734541639675,5.5788396,215.32,215.2,11.39992992]
[1734541639977,2.32,215.31,215.22,2.3236]
[1734541640377,2.32,215.31,215.2,11.39992992]
[1734541640580,2.3233,215.27,215.23,2.3236]
[1734541640782,2.32,215.31,215.2,11.39992992]
[1734541641184,2.3234,215.26,215.22,2.3237]
[1734541641577,2.32,215.25,215.22,2.3237]
[1734541641878,4.6434,215.25,215.22,2.3237]
[1734541642072,4.6434,215.25,215.2,11.39992992]
[1734541642272,4.6434,215.25,215.21,2.3238]
[1734541644187,4.6434,215.25,215.18,3.1631]
[1734541644485,4.6434,215.25,215.22,2.3237]
[1734541646386,5.5788396,215.32,215.22,2.3237]
[1734541646585,5.5788396,215.32,215.25,2.3234]
[1734541646781,2.32,215.31,215.2,11.39992992]
[1734541647284,2.32,215.31,215.18,3.1631]
[1734541647585,2.32,215.31,215.19,11.39992992]
[1734541647786,11.39992992,215.27,215.17,2.3243]
[1734541647978,2.32,215.26,215.15,0.29157]